[Event "*** Titled Tuesday Blitz"]
[Site "Chess.com"]
[Date "2021.03.30"]
[Round "3"]
[White "wadsy27"]
[Black "Tactictic"]
[Result "1-0"]
[WhiteElo "2567"]
[BlackElo "2383"]
[TimeControl "180+1"]
[EndTime "10:29:23 PDT"]
[Termination "wadsy27 won by checkmate"]

1. c4 {[%clk 0:03:00.9]} 1... e6 {[%clk 0:02:55.9]} 2. g3 {[%clk 0:02:59.9]}
2... d5 {[%clk 0:02:53.7]} 3. Bg2 {[%clk 0:03:00.2]} 3... Nf6 {[%clk 0:02:52.9]}
4. Nf3 {[%clk 0:03:00.7]} 4... dxc4 {[%clk 0:02:52.4]} 5. Qa4+ {[%clk
0:02:59.5]} 5... Bd7 {[%clk 0:02:41.6]} 6. Qxc4 {[%clk 0:02:56.8]} 6... c5
{[%clk 0:02:19.6]} 7. O-O {[%clk 0:02:53.9]} 7... Nc6 {[%clk 0:02:18.9]} 8. a4
{[%clk 0:02:50.9]} 8... Be7 {[%clk 0:02:15.3]} 9. d3 {[%clk 0:02:50.7]} 9... O-O
{[%clk 0:02:14.9]} 10. Bd2 {[%clk 0:02:50.6]} 10... e5 {[%clk 0:02:14]} 11. Na3
{[%clk 0:02:46.5]} 11... Be6 {[%clk 0:02:06.3]} 12. Qc2 {[%clk 0:02:35.1]} 12...
Rc8 {[%clk 0:02:02.9]} 13. Nc4 {[%clk 0:02:30.1]} 13... e4 {[%clk 0:01:57.4]}
14. dxe4 {[%clk 0:02:22.7]} 14... Nb4 {[%clk 0:01:05.9]} 15. Bxb4 {[%clk
0:02:21.6]} 15... cxb4 {[%clk 0:01:06.8]} 16. b3 {[%clk 0:02:20.8]} 16... Bxc4
{[%clk 0:01:06.5]} 17. bxc4 {[%clk 0:02:20.6]} 17... Qb6 {[%clk 0:01:06.6]} 18.
a5 {[%clk 0:02:12.1]} 18... Qa6 {[%clk 0:01:05.6]} 19. Nd2 {[%clk 0:02:07.8]}
19... Bd6 {[%clk 0:00:59.3]} 20. Bh3 {[%clk 0:01:51.4]} 20... Rc7 {[%clk
0:00:53.4]} 21. f4 {[%clk 0:01:47.8]} 21... Bc5+ {[%clk 0:00:51.6]} 22. Kh1
{[%clk 0:01:45.4]} 22... Rd8 {[%clk 0:00:38.4]} 23. e5 {[%clk 0:01:39.9]} 23...
Ne8 {[%clk 0:00:36.4]} 24. Nb3 {[%clk 0:01:23.3]} 24... Be7 {[%clk 0:00:30.6]}
25. c5 {[%clk 0:01:17]} 25... Qb5 {[%clk 0:00:27.7]} 26. Rad1 {[%clk 0:01:13.4]}
26... Rxd1 {[%clk 0:00:24.7]} 27. Rxd1 {[%clk 0:01:14.3]} 27... Bxc5 {[%clk
0:00:24.6]} 28. Rd5 {[%clk 0:00:46.8]} 28... Qc6 {[%clk 0:00:19]} 29. Qxc5
{[%clk 0:00:44.3]} 29... Qxc5 {[%clk 0:00:14]} 30. Rxc5 {[%clk 0:00:45.2]} 30...
Rxc5 {[%clk 0:00:13.8]} 31. Nxc5 {[%clk 0:00:46.1]} 31... Nc7 {[%clk 0:00:11.7]}
32. Nxb7 {[%clk 0:00:41.7]} 32... b3 {[%clk 0:00:11.6]} 33. Bf5 {[%clk
0:00:41.4]} 33... Nb5 {[%clk 0:00:07.5]} 34. Nc5 {[%clk 0:00:37.1]} 34... Nd4
{[%clk 0:00:06]} 35. Bd3 {[%clk 0:00:34]} 35... b2 {[%clk 0:00:03.6]} 36. Na4
{[%clk 0:00:33.2]} 36... Kf8 {[%clk 0:00:03.1]} 37. Nxb2 {[%clk 0:00:33.1]}
37... Ke7 {[%clk 0:00:03.5]} 38. e3 {[%clk 0:00:33.2]} 38... Nc6 {[%clk
0:00:04.1]} 39. a6 {[%clk 0:00:17.2]} 39... Nb4 {[%clk 0:00:05]} 40. Bxh7 {[%clk
0:00:16.5]} 40... g6 {[%clk 0:00:04.8]} 41. f5 {[%clk 0:00:16.3]} 41... g5
{[%clk 0:00:03.7]} 42. h4 {[%clk 0:00:14.6]} 42... gxh4 {[%clk 0:00:04]} 43.
gxh4 {[%clk 0:00:14.8]} 43... Nxa6 {[%clk 0:00:04.4]} 44. h5 {[%clk 0:00:14.1]}
44... Kf8 {[%clk 0:00:04.4]} 45. h6 {[%clk 0:00:14.1]} 45... Nc7 {[%clk
0:00:03.9]} 46. f6 {[%clk 0:00:13.9]} 46... Nd5 {[%clk 0:00:03.4]} 47. Be4
{[%clk 0:00:13.1]} 47... Nxf6 {[%clk 0:00:01.2]} 48. exf6 {[%clk 0:00:12.2]}
48... Kg8 {[%clk 0:00:02.1]} 49. Kg2 {[%clk 0:00:11]} 49... a5 {[%clk 0:00:03]}
50. Na4 {[%clk 0:00:10.1]} 50... Kh8 {[%clk 0:00:02.7]} 51. Kg3 {[%clk
0:00:10.6]} 51... Kg8 {[%clk 0:00:03.6]} 52. Kf4 {[%clk 0:00:11.1]} 52... Kh8
{[%clk 0:00:04.5]} 53. Ke5 {[%clk 0:00:11.6]} 53... Kg8 {[%clk 0:00:05.4]} 54.
Kd6 {[%clk 0:00:12.1]} 54... Kh8 {[%clk 0:00:06.3]} 55. Kc5 {[%clk 0:00:12.7]}
55... Kg8 {[%clk 0:00:07.2]} 56. Kb5 {[%clk 0:00:13.3]} 56... Kh8 {[%clk
0:00:08.1]} 57. Kxa5 {[%clk 0:00:14]} 57... Kg8 {[%clk 0:00:09]} 58. Kb6 {[%clk
0:00:14.7]} 58... Kh8 {[%clk 0:00:09.9]} 59. Kc7 {[%clk 0:00:15.3]} 59... Kg8
{[%clk 0:00:10.8]} 60. Kd7 {[%clk 0:00:15.9]} 60... Kh8 {[%clk 0:00:11.7]} 61.
Ke7 {[%clk 0:00:16.4]} 61... Kg8 {[%clk 0:00:12.6]} 62. h7+ {[%clk 0:00:15.8]}
62... Kh8 {[%clk 0:00:13.5]} 63. Bd5 {[%clk 0:00:16.1]} 63... Kxh7 {[%clk
0:00:13.4]} 64. Kxf7 {[%clk 0:00:16.6]} 64... Kh8 {[%clk 0:00:14.3]} 65. Ke7
{[%clk 0:00:17.1]} 65... Kh7 {[%clk 0:00:15.2]} 66. f7 {[%clk 0:00:17.5]} 66...
Kh8 {[%clk 0:00:16.1]} 67. f8=Q+ {[%clk 0:00:17.5]} 67... Kh7 {[%clk 0:00:17]}
68. Qg8+ {[%clk 0:00:17.6]} 68... Kh6 {[%clk 0:00:16.9]} 69. Kf6 {[%clk
0:00:17]} 69... Kh5 {[%clk 0:00:17.8]} 70. Qg5# {[%clk 0:00:17.1]} 1-0

[Event "*** Titled Tuesday Blitz"]
[Site "Chess.com"]
[Date "2021.03.30"]
[Round "3"]
[White "BlackWidow515"]
[Black "03revilo"]
[Result "1-0"]
[WhiteElo "2200"]
[BlackElo "2327"]
[TimeControl "180+1"]
[EndTime "10:29:23 PDT"]
[Termination "BlackWidow515 won on time"]

1. d4 {[%clk 0:02:59.3]} 1... d5 {[%clk 0:02:59.4]} 2. Nf3 {[%clk 0:02:59.8]}
2... e6 {[%clk 0:03:00]} 3. g3 {[%clk 0:03:00.2]} 3... Nf6 {[%clk 0:03:00.6]} 4.
Bg2 {[%clk 0:03:00.8]} 4... Be7 {[%clk 0:03:01.3]} 5. O-O {[%clk 0:03:01.4]}
5... O-O {[%clk 0:03:01.9]} 6. Nbd2 {[%clk 0:03:02.1]} 6... b6 {[%clk
0:03:01.9]} 7. b3 {[%clk 0:03:02.7]} 7... c5 {[%clk 0:03:01.6]} 8. Bb2 {[%clk
0:03:02.9]} 8... Bb7 {[%clk 0:03:02.1]} 9. c4 {[%clk 0:03:02.9]} 9... Nbd7
{[%clk 0:03:01.7]} 10. Rc1 {[%clk 0:03:02.5]} 10... Rc8 {[%clk 0:03:01.1]} 11.
Re1 {[%clk 0:03:01.3]} 11... Ne4 {[%clk 0:03:00.2]} 12. Ne5 {[%clk 0:03:00.5]}
12... cxd4 {[%clk 0:02:35]} 13. Nxd7 {[%clk 0:02:50.8]} 13... Qxd7 {[%clk
0:02:35.9]} 14. Nxe4 {[%clk 0:02:45.3]} 14... dxe4 {[%clk 0:02:36.8]} 15. Qxd4
{[%clk 0:02:45.2]} 15... Qxd4 {[%clk 0:02:33.2]} 16. Bxd4 {[%clk 0:02:45.3]}
16... Rfd8 {[%clk 0:02:30.3]} 17. Red1 {[%clk 0:02:44.7]} 17... Ba3 {[%clk
0:02:28.2]} 18. Rb1 {[%clk 0:02:44.5]} 18... Rd7 {[%clk 0:02:14.5]} 19. Bc3
{[%clk 0:02:19.6]} 19... Rcd8 {[%clk 0:02:14]} 20. Rxd7 {[%clk 0:02:19.6]} 20...
Rxd7 {[%clk 0:02:14.9]} 21. Kf1 {[%clk 0:02:20.1]} 21... f6 {[%clk 0:01:52]} 22.
Ke1 {[%clk 0:02:19]} 22... Bc5 {[%clk 0:01:50.2]} 23. e3 {[%clk 0:02:16.1]}
23... Rd3 {[%clk 0:01:47.8]} 24. Bd2 {[%clk 0:02:15.2]} 24... Kf7 {[%clk
0:01:44.3]} 25. Bf1 {[%clk 0:02:14.4]} 25... Rd7 {[%clk 0:01:41.4]} 26. Bc3
{[%clk 0:02:14.6]} 26... g5 {[%clk 0:01:34.1]} 27. Rd1 {[%clk 0:02:12.3]} 27...
Rxd1+ {[%clk 0:01:32.9]} 28. Kxd1 {[%clk 0:02:10.6]} 28... a5 {[%clk 0:01:33.8]}
29. Kc2 {[%clk 0:02:07]} 29... h5 {[%clk 0:01:32.3]} 30. Kb2 {[%clk 0:02:06.3]}
30... Kg6 {[%clk 0:01:26.8]} 31. a3 {[%clk 0:02:06]} 31... e5 {[%clk 0:01:24.1]}
32. b4 {[%clk 0:02:05.4]} 32... axb4 {[%clk 0:01:25]} 33. axb4 {[%clk
0:02:05.7]} 33... Bd6 {[%clk 0:01:25.9]} 34. Kb3 {[%clk 0:02:06]} 34... f5
{[%clk 0:01:20.4]} 35. Bb2 {[%clk 0:02:04.6]} 35... f4 {[%clk 0:01:16.3]} 36.
Ba3 {[%clk 0:02:00.7]} 36... Be7 {[%clk 0:00:47.7]} 37. c5 {[%clk 0:01:57.5]}
37... Bd5+ {[%clk 0:00:46.3]} 38. Ka4 {[%clk 0:01:45.2]} 38... bxc5 {[%clk
0:00:34.5]} 39. bxc5 {[%clk 0:01:44.1]} 39... Kf5 {[%clk 0:00:34.5]} 40. Bh3+
{[%clk 0:01:29.3]} 40... g4 {[%clk 0:00:34]} 41. Bf1 {[%clk 0:01:29.9]} 41...
Bg5 {[%clk 0:00:32.4]} 42. Bc1 {[%clk 0:01:25]} 42... h4 {[%clk 0:00:16.2]} 43.
Kb5 {[%clk 0:01:15.1]} 43... h3 {[%clk 0:00:13.4]} 44. c6 {[%clk 0:01:06.1]}
44... fxg3 {[%clk 0:00:13]} 45. fxg3 {[%clk 0:01:05.5]} 45... Ke6 {[%clk
0:00:11]} 46. Kb6 {[%clk 0:01:03]} 46... Kd6 {[%clk 0:00:10.6]} 47. c7 {[%clk
0:00:39.5]} 47... Be6 {[%clk 0:00:10.6]} 48. Ba3+ {[%clk 0:00:34.3]} 48... Kd5
{[%clk 0:00:10.4]} 49. Bc1 {[%clk 0:00:31.2]} 49... Bd7 {[%clk 0:00:03.9]} 50.
Kb7 {[%clk 0:00:29.5]} 50... Kc5 {[%clk 0:00:02.2]} 51. Ba3+ {[%clk 0:00:23.5]}
51... Kd5 {[%clk 0:00:02.4]} 52. Bb5 {[%clk 0:00:20.5]} 52... Be6 {[%clk
0:00:01.1]} 53. Bc1 {[%clk 0:00:15.6]} 53... Kc5 {[%clk 0:00:01.2]} 54. Ba6
{[%clk 0:00:15.5]} 1-0

[Event "*** Titled Tuesday Blitz"]
[Site "Chess.com"]
[Date "2021.03.30"]
[Round "3"]
[White "Witik"]
[Black "Bigfish1995"]
[Result "0-1"]
[WhiteElo "2710"]
[BlackElo "3024"]
[TimeControl "180+1"]
[EndTime "10:29:27 PDT"]
[Termination "Bigfish1995 won on time"]

1. d4 {[%clk 0:02:52.1]} 1... e6 {[%clk 0:02:53.6]} 2. c4 {[%clk 0:02:46.5]}
2... f5 {[%clk 0:02:51.7]} 3. g3 {[%clk 0:02:42.8]} 3... Nf6 {[%clk 0:02:51.2]}
4. Bg2 {[%clk 0:02:43.1]} 4... c6 {[%clk 0:02:51.1]} 5. Nh3 {[%clk 0:02:40.5]}
5... Be7 {[%clk 0:02:49.5]} 6. d5 {[%clk 0:02:28.9]} 6... d6 {[%clk 0:02:26.2]}
7. dxe6 {[%clk 0:02:14.9]} 7... Bxe6 {[%clk 0:02:24.2]} 8. Qc2 {[%clk
0:02:14.1]} 8... Nbd7 {[%clk 0:02:17.4]} 9. O-O {[%clk 0:02:07]} 9... Ne5 {[%clk
0:02:07.6]} 10. b3 {[%clk 0:02:02.9]} 10... O-O {[%clk 0:02:06.6]} 11. Bb2
{[%clk 0:01:58.7]} 11... Qe8 {[%clk 0:02:01.7]} 12. Nf4 {[%clk 0:01:56.8]} 12...
Bd7 {[%clk 0:01:59.6]} 13. Nc3 {[%clk 0:01:49.8]} 13... Nh5 {[%clk 0:01:57.6]}
14. e3 {[%clk 0:01:46.4]} 14... g5 {[%clk 0:01:54.5]} 15. Nd3 {[%clk 0:01:38.3]}
15... Bf6 {[%clk 0:01:39.9]} 16. Rfe1 {[%clk 0:01:29.5]} 16... Qf7 {[%clk
0:01:28.4]} 17. Rad1 {[%clk 0:01:25.3]} 17... f4 {[%clk 0:01:16.2]} 18. exf4
{[%clk 0:01:21.8]} 18... gxf4 {[%clk 0:01:14.3]} 19. Ne4 {[%clk 0:01:20.5]}
19... Qg6 {[%clk 0:00:47.3]} 20. Nxf6+ {[%clk 0:00:53.1]} 20... Nxf6 {[%clk
0:00:46.4]} 21. Qc3 {[%clk 0:00:36.9]} 21... fxg3 {[%clk 0:00:42.2]} 22. hxg3
{[%clk 0:00:33.7]} 22... Neg4 {[%clk 0:00:41.6]} 23. Nf4 {[%clk 0:00:26.9]}
23... Qh6 {[%clk 0:00:40.9]} 24. Rxd6 {[%clk 0:00:27]} 24... Rae8 {[%clk
0:00:36.4]} 25. Rxe8 {[%clk 0:00:18]} 25... Rxe8 {[%clk 0:00:34.9]} 26. Rxf6
{[%clk 0:00:17.3]} 26... Qxf6 {[%clk 0:00:17.6]} 27. Qxf6 {[%clk 0:00:17.6]}
27... Nxf6 {[%clk 0:00:17]} 28. Bxf6 {[%clk 0:00:18.3]} 28... Re1+ {[%clk
0:00:17.3]} 29. Bf1 {[%clk 0:00:17.6]} 29... Bf5 {[%clk 0:00:16.2]} 30. f3
{[%clk 0:00:16.1]} 30... Rc1 {[%clk 0:00:15.1]} 31. g4 {[%clk 0:00:14.9]} 31...
Bb1 {[%clk 0:00:13.7]} 32. a3 {[%clk 0:00:13.2]} 32... Ba2 {[%clk 0:00:13.9]}
33. Kf2 {[%clk 0:00:12]} 33... Bxb3 {[%clk 0:00:13.9]} 34. Bd4 {[%clk
0:00:09.5]} 34... Bxc4 {[%clk 0:00:12.7]} 35. Bxc4+ {[%clk 0:00:09.6]} 35...
Rxc4 {[%clk 0:00:13.2]} 36. Ke3 {[%clk 0:00:08.9]} 36... Ra4 {[%clk 0:00:13.1]}
37. Nh5 {[%clk 0:00:09.4]} 37... Rxa3+ {[%clk 0:00:12.6]} 38. Ke4 {[%clk
0:00:10]} 38... Ra4 {[%clk 0:00:10.2]} 39. Ke3 {[%clk 0:00:06]} 39... Kf7 {[%clk
0:00:10.5]} 40. g5 {[%clk 0:00:05.4]} 40... b6 {[%clk 0:00:10]} 41. Nf6 {[%clk
0:00:05.3]} 41... Kg6 {[%clk 0:00:10.2]} 42. f4 {[%clk 0:00:05.2]} 42... c5
{[%clk 0:00:10]} 43. Be5 {[%clk 0:00:05.6]} 43... b5 {[%clk 0:00:09.2]} 44. Nd7
{[%clk 0:00:05.9]} 44... c4 {[%clk 0:00:05.9]} 45. Nf8+ {[%clk 0:00:06.3]} 45...
Kf5 {[%clk 0:00:05.6]} 46. Nxh7 {[%clk 0:00:07.2]} 46... Ra3+ {[%clk 0:00:06]}
47. Kd4 {[%clk 0:00:07.4]} 47... Rd3+ {[%clk 0:00:06.1]} 48. Kc5 {[%clk
0:00:07.5]} 48... c3 {[%clk 0:00:06.6]} 49. Kb4 {[%clk 0:00:05.8]} 49... c2
{[%clk 0:00:06.7]} 50. Bb2 {[%clk 0:00:05.9]} 50... a5+ {[%clk 0:00:06.7]} 51.
Kxa5 {[%clk 0:00:05.1]} 51... Rb3 {[%clk 0:00:07.2]} 52. Bc1 {[%clk 0:00:05.6]}
52... Rb1 {[%clk 0:00:07.4]} 53. Be3 {[%clk 0:00:06]} 53... b4 {[%clk 0:00:07]}
54. Nf8 {[%clk 0:00:04.7]} 54... b3 {[%clk 0:00:07.3]} 55. g6 {[%clk 0:00:05.2]}
55... b2 {[%clk 0:00:06.9]} 56. g7 {[%clk 0:00:05.5]} 56... Ra1+ {[%clk
0:00:07.5]} 0-1

[Event "*** Titled Tuesday Blitz"]
[Site "Chess.com"]
[Date "2021.03.30"]
[Round "3"]
[White "Goryachkina"]
[Black "Rytenko_V"]
[Result "1/2-1/2"]
[WhiteElo "2628"]
[BlackElo "2407"]
[TimeControl "180+1"]
[EndTime "10:29:31 PDT"]
[Termination "Game drawn - insufficient material"]

1. e4 {[%clk 0:03:00.9]} 1... e6 {[%clk 0:03:00]} 2. d4 {[%clk 0:03:00.3]} 2...
d5 {[%clk 0:03:00]} 3. e5 {[%clk 0:03:00.8]} 3... c5 {[%clk 0:02:57.1]} 4. c3
{[%clk 0:03:00.8]} 4... Qb6 {[%clk 0:02:57]} 5. Nf3 {[%clk 0:02:59.1]} 5... Nc6
{[%clk 0:02:56.9]} 6. Be2 {[%clk 0:02:46.1]} 6... Bd7 {[%clk 0:02:53.8]} 7. O-O
{[%clk 0:02:45.5]} 7... Rc8 {[%clk 0:02:52.3]} 8. a3 {[%clk 0:02:44.6]} 8... f6
{[%clk 0:02:44.8]} 9. exf6 {[%clk 0:02:10.2]} 9... Nxf6 {[%clk 0:02:45.7]} 10.
Re1 {[%clk 0:02:09.8]} 10... cxd4 {[%clk 0:02:40.5]} 11. cxd4 {[%clk 0:02:06]}
11... Bd6 {[%clk 0:02:24]} 12. Nc3 {[%clk 0:02:05.4]} 12... O-O {[%clk
0:02:16.3]} 13. Bd3 {[%clk 0:02:05.3]} 13... Rce8 {[%clk 0:01:57.3]} 14. Bg5
{[%clk 0:02:00.3]} 14... a6 {[%clk 0:01:39]} 15. Na4 {[%clk 0:01:42.7]} 15...
Qc7 {[%clk 0:01:38.4]} 16. Rc1 {[%clk 0:01:41.9]} 16... Qb8 {[%clk 0:01:12.9]}
17. Nc5 {[%clk 0:01:36.9]} 17... Bc8 {[%clk 0:01:11.1]} 18. b4 {[%clk
0:01:34.1]} 18... Bf4 {[%clk 0:01:02.7]} 19. Bxf4 {[%clk 0:01:29.7]} 19... Qxf4
{[%clk 0:01:03.6]} 20. Nxa6 {[%clk 0:01:15.8]} 20... Ng4 {[%clk 0:00:39]} 21.
Nc5 {[%clk 0:00:47.3]} 21... e5 {[%clk 0:00:36]} 22. h3 {[%clk 0:00:29.9]} 22...
Nxf2 {[%clk 0:00:25.1]} 23. Kxf2 {[%clk 0:00:25.2]} 23... e4 {[%clk 0:00:25.4]}
24. Kg1 {[%clk 0:00:19.3]} 24... exf3 {[%clk 0:00:18.7]} 25. Rxe8 {[%clk
0:00:16.3]} 25... f2+ {[%clk 0:00:18.2]} 26. Kf1 {[%clk 0:00:15.4]} 26... Rxe8
{[%clk 0:00:18.7]} 27. Qc2 {[%clk 0:00:08.9]} 27... Rf8 {[%clk 0:00:12.4]} 28.
Bxh7+ {[%clk 0:00:06]} 28... Kh8 {[%clk 0:00:12.4]} 29. Nd3 {[%clk 0:00:02.5]}
29... Qe3 {[%clk 0:00:04.9]} 30. Rd1 {[%clk 0:00:01.2]} 30... Nxd4 {[%clk
0:00:04.8]} 31. Qd2 {[%clk 0:00:01.5]} 31... Qxd2 {[%clk 0:00:03.5]} 32. Rxd2
{[%clk 0:00:02]} 32... Kxh7 {[%clk 0:00:04.4]} 33. Nxf2 {[%clk 0:00:02.5]} 33...
Nc6 {[%clk 0:00:04]} 34. Rxd5 {[%clk 0:00:02.8]} 34... Be6 {[%clk 0:00:04.2]}
35. Rd6 {[%clk 0:00:02.7]} 35... Bc4+ {[%clk 0:00:05.1]} 36. Ke1 {[%clk
0:00:02.8]} 36... Re8+ {[%clk 0:00:05.7]} 37. Kd1 {[%clk 0:00:03.4]} 37... Bb3+
{[%clk 0:00:06.2]} 38. Kd2 {[%clk 0:00:03.4]} 38... Ba4 {[%clk 0:00:07]} 39. g4
{[%clk 0:00:03.2]} 39... Rd8 {[%clk 0:00:07.4]} 40. Rxd8 {[%clk 0:00:03.2]}
40... Nxd8 {[%clk 0:00:08.3]} 41. Ne4 {[%clk 0:00:03.6]} 41... Bc6 {[%clk
0:00:08.4]} 42. Nc5 {[%clk 0:00:03.9]} 42... b5 {[%clk 0:00:07.4]} 43. Ke3
{[%clk 0:00:04]} 43... Nb7 {[%clk 0:00:06.7]} 44. Ne6 {[%clk 0:00:03.6]} 44...
Nd6 {[%clk 0:00:06.6]} 45. Kd4 {[%clk 0:00:02.7]} 45... Nc4 {[%clk 0:00:06.3]}
46. Kc5 {[%clk 0:00:03.1]} 46... Be8 {[%clk 0:00:06.8]} 47. Nc7 {[%clk
0:00:02.2]} 47... Bf7 {[%clk 0:00:05.5]} 48. Nxb5 {[%clk 0:00:02.2]} 48... Ne5
{[%clk 0:00:03.8]} 49. a4 {[%clk 0:00:02.4]} 49... Be8 {[%clk 0:00:03.7]} 50. a5
{[%clk 0:00:01.8]} 50... Nd3+ {[%clk 0:00:04.2]} 51. Kb6 {[%clk 0:00:02.3]}
51... Nxb4 {[%clk 0:00:03.1]} 52. Nc7 {[%clk 0:00:02.8]} 52... Bd7 {[%clk
0:00:02]} 53. Kc5 {[%clk 0:00:03.2]} 53... Nd3+ {[%clk 0:00:01.5]} 54. Kd6
{[%clk 0:00:03.6]} 54... Bc8 {[%clk 0:00:01.7]} 55. a6 {[%clk 0:00:04]} 55...
Bxa6 {[%clk 0:00:01.9]} 56. Nxa6 {[%clk 0:00:04.5]} 56... Kg6 {[%clk 0:00:01.7]}
57. h4 {[%clk 0:00:04.3]} 57... Nf2 {[%clk 0:00:01.4]} 58. Nc5 {[%clk
0:00:04.4]} 58... Nxg4 {[%clk 0:00:01.1]} 59. Ne6 {[%clk 0:00:04.9]} 59... Kh5
{[%clk 0:00:02]} 60. Nxg7+ {[%clk 0:00:05.3]} 60... Kxh4 {[%clk 0:00:02.8]}
1/2-1/2

[Event "*** Titled Tuesday Blitz"]
[Site "Chess.com"]
[Date "2021.03.30"]
[Round "3"]
[White "azikom"]
[Black "Srinavasan"]
[Result "0-1"]
[WhiteElo "2690"]
[BlackElo "2974"]
[TimeControl "180+1"]
[EndTime "10:29:33 PDT"]
[Termination "Srinavasan won on time"]

1. d4 {[%clk 0:02:59]} 1... Nf6 {[%clk 0:02:59.5]} 2. Nf3 {[%clk 0:02:58.5]}
2... g6 {[%clk 0:02:55.6]} 3. g3 {[%clk 0:02:58.3]} 3... Bg7 {[%clk 0:02:55.3]}
4. Bg2 {[%clk 0:02:59.2]} 4... O-O {[%clk 0:02:55.8]} 5. O-O {[%clk 0:03:00.1]}
5... d6 {[%clk 0:02:56.3]} 6. Nbd2 {[%clk 0:02:59.7]} 6... Re8 {[%clk
0:02:49.2]} 7. b3 {[%clk 0:02:51.5]} 7... e5 {[%clk 0:02:46.7]} 8. dxe5 {[%clk
0:02:51.1]} 8... dxe5 {[%clk 0:02:47.6]} 9. e4 {[%clk 0:02:40.3]} 9... b6 {[%clk
0:02:43.2]} 10. Bb2 {[%clk 0:02:39.9]} 10... Nbd7 {[%clk 0:02:42.4]} 11. Re1
{[%clk 0:02:35.5]} 11... Bb7 {[%clk 0:02:41.4]} 12. a4 {[%clk 0:02:33.3]} 12...
a5 {[%clk 0:02:40.7]} 13. h4 {[%clk 0:02:10.9]} 13... h5 {[%clk 0:02:38.5]} 14.
Ng5 {[%clk 0:01:57.2]} 14... Nc5 {[%clk 0:02:37.2]} 15. Nc4 {[%clk 0:01:53.4]}
15... Nfd7 {[%clk 0:02:33.9]} 16. Qe2 {[%clk 0:01:28.6]} 16... f6 {[%clk
0:02:31.4]} 17. Nh3 {[%clk 0:01:28.1]} 17... Nf8 {[%clk 0:02:20]} 18. Rad1
{[%clk 0:01:27.2]} 18... Qe7 {[%clk 0:02:20.5]} 19. Ne3 {[%clk 0:01:23.5]} 19...
Nfe6 {[%clk 0:02:14.8]} 20. Nd5 {[%clk 0:01:22]} 20... Qf7 {[%clk 0:02:15.1]}
21. Ba3 {[%clk 0:01:14.4]} 21... Rad8 {[%clk 0:02:13]} 22. Qc4 {[%clk
0:01:03.1]} 22... Bf8 {[%clk 0:01:25.9]} 23. Kh2 {[%clk 0:01:00.8]} 23... Nd4
{[%clk 0:01:22.1]} 24. Nxf6+ {[%clk 0:00:54.8]} 24... Kg7 {[%clk 0:01:18.3]} 25.
Qxf7+ {[%clk 0:00:53.8]} 25... Kxf7 {[%clk 0:01:18.1]} 26. Nxe8 {[%clk
0:00:54.3]} 26... Kxe8 {[%clk 0:01:14.7]} 27. Bb2 {[%clk 0:00:50.6]} 27... Nxc2
{[%clk 0:01:04.9]} 28. Rxd8+ {[%clk 0:00:50]} 28... Kxd8 {[%clk 0:01:05.8]} 29.
Rd1+ {[%clk 0:00:50.4]} 29... Kc8 {[%clk 0:01:05.8]} 30. Bxe5 {[%clk 0:00:49.1]}
30... Nxb3 {[%clk 0:01:05.7]} 31. Ng5 {[%clk 0:00:46.3]} 31... Bc5 {[%clk
0:00:53.5]} 32. Ne6 {[%clk 0:00:43.2]} 32... Bc6 {[%clk 0:00:50.6]} 33. Rd8+
{[%clk 0:00:39.8]} 33... Kb7 {[%clk 0:00:49.1]} 34. Bxc7 {[%clk 0:00:38.6]}
34... Bxf2 {[%clk 0:00:43.1]} 35. e5 {[%clk 0:00:28.3]} 35... Bxg2 {[%clk
0:00:39.7]} 36. Kxg2 {[%clk 0:00:28.4]} 36... Bc5 {[%clk 0:00:40.6]} 37. Bd6
{[%clk 0:00:26.7]} 37... Kc6 {[%clk 0:00:32.2]} 38. Bxc5 {[%clk 0:00:26.3]}
38... bxc5 {[%clk 0:00:31.6]} 39. Rd6+ {[%clk 0:00:24.9]} 39... Kb7 {[%clk
0:00:31.3]} 40. Nf4 {[%clk 0:00:20.5]} 40... Ne3+ {[%clk 0:00:30]} 41. Kg1
{[%clk 0:00:12.7]} 41... Nd4 {[%clk 0:00:26.3]} 42. e6 {[%clk 0:00:09.8]} 42...
Nef5 {[%clk 0:00:23.9]} 43. Rd7+ {[%clk 0:00:07.8]} 43... Kc6 {[%clk 0:00:24.1]}
44. Rd8 {[%clk 0:00:07.8]} 44... Kc7 {[%clk 0:00:18.3]} 45. Rg8 {[%clk
0:00:06.7]} 45... Ne7 {[%clk 0:00:17.1]} 46. Rf8 {[%clk 0:00:05.6]} 46... c4
{[%clk 0:00:16]} 47. Kf2 {[%clk 0:00:05.1]} 47... c3 {[%clk 0:00:16]} 48. Ke3
{[%clk 0:00:05.4]} 48... c2 {[%clk 0:00:14.2]} 49. Kd2 {[%clk 0:00:05.6]} 49...
Kd6 {[%clk 0:00:13.1]} 50. Rd8+ {[%clk 0:00:04.5]} 50... Ke5 {[%clk 0:00:13]}
51. Rd7 {[%clk 0:00:04.4]} 51... Ndf5 {[%clk 0:00:08.3]} 52. Kxc2 {[%clk
0:00:03.6]} 52... Kf6 {[%clk 0:00:08.7]} 53. Nd5+ {[%clk 0:00:02.8]} 53... Kxe6
{[%clk 0:00:08.6]} 0-1